[Event "Polish University-ch Open 2024"]
[Site "Lublin"]
[Date "2024.02.24"]
[Round "7.15"]
[White "Hrymowicz, Artur"]
[Black "Hasterok, Mateusz"]
[Result "1/2-1/2"]
[ECO "B44"]
[WhiteElo "2131"]
[BlackElo "2150"]
[Annotator "RC"]
[PlyCount "154"]
[EventDate "2024.02.22"]
[EventType "swiss"]
[EventCountry "POL"]
[SourceTitle "playchess.com"]
[Source "ChessBase"]
[SourceQuality "1"]
[TimeControl "600+3"]

1. e4 {[%emt 0:00:02]} c5 {[%emt 0:00:01]} 2. Nf3 {[%emt 0:00:07]} e6 {[%emt 0:00:01]} 3. d4 {[%emt 0:00:13]} cxd4 {[%emt 0:00:02]} 4. Nxd4 {[%emt 0:00:01]} Nc6 {[%emt 0:00:01]} 5. c4 {[%emt 0:00:01]} Nf6 {[%emt 0:00:05]} 6. Nc3 {[%emt 0:00:01]} Bb4 {[%emt 0:00:01]} 7. Nxc6 {[%emt 0:00:35]} bxc6 {[%emt 0:00:03]} 8. Bd3 {[%emt 0:02:25]} e5 {[%emt 0:01:18]} 9. O-O {[%emt 0:07:05]} O-O {[%emt 0:00:10]} 10. Bg5 {[%emt 0:00:00]} h6 {[%emt 0:00:04]} 11. Bh4 {[%emt 0:00:00]} Be7 {[%emt 0:00:02]} 12. Qc2 {[%emt 0:00:00]} Rb8 {[%emt 0:00:09]} 13. b3 {[%emt 0:00:00]} Nh5 {[%emt 0:01:20]} 14. Bxe7 {[%emt 0:00:00]} Qxe7 {[%emt 0:00:01]} 15. Ne2 {[%emt 0:00:00]} d6 {[%emt 0:00:07]} 16. Rac1 {[%emt 0:00:00]} Qg5 {[%emt 0:00:58]} 17. Kh1 {[%emt 0:00:00]} Be6 {[%emt 0:00:28]} 18. Rcd1 {[%emt 0:00:00]} Rbd8 {[%emt 0:00:01]} 19. Qd2 {[%emt 0:00:00]} Qe7 {[%emt 0:00:42]} 20. Qe3 {[%emt 0:00:00]} Nf6 {[%emt 0:01:34]} 21. h3 {[%emt 0:00:00]} Nd7 {[%emt 0:00:06]} 22. Ng3 {[%emt 0:00:00]} Qh4 {[%emt 0:00:17]} 23. Be2 {[%emt 0:00:00]} a5 {[%emt 0:00:11]} 24. Rd2 {[%emt 0:00:00]} Nc5 {[%emt 0:00:36]} 25. Rfd1 {[%emt 0:00:00]} Qe7 {[%emt 0:00:02]} 26. Kg1 {[%emt 0:00:00]} f5 {[%emt 0:00:13]} 27. exf5 {[%emt 0:00:00]} Bxf5 {[%emt 0:00:02]} 28. Nxf5 {[%emt 0:00:00]} Rxf5 {[%emt 0:00:01]} 29. Bf3 {[%emt 0:00:00]} e4 {[%emt 0:00:41]} 30. Bg4 {[%emt 0:00:00]} Re5 {[%emt 0:00:03]} 31. Rd4 {[%emt 0:00:15]} Nd3 {[%emt 0:00:43]} 32. Be2 {[%emt 0:00:19]} c5 {[%emt 0:00:42]} 33. Rd5 {[%emt 0:00:06]} Nb4 {[%emt 0:00:02]} 34. Rxe5 {[%emt 0:00:13]} Qxe5 {[%emt 0:00:01]} 35. Qd2 {[%emt 0:00:10]} Kh7 {[%emt 0:00:39]} 36. Bf1 {[%emt 0:00:06]} Nc6 {[%emt 0:00:07]} 37. Re1 {[%emt 0:00:04]} Nd4 {[%emt 0:00:03]} 38. Rxe4 {[%emt 0:00:06]} Qf6 {[%emt 0:00:08]} 39. Qe3 {[%emt 0:00:03]} Rf8 {[%emt 0:00:03]} 40. Bd3 {[%emt 0:00:01]} Kh8 {[%emt 0:00:01]} 41. Re8 {[%emt 0:00:03]} Kg8 {[%emt 0:00:03]} 42. Rxf8+ {[%emt 0:00:04]} Kxf8 {[%emt 0:00:01]} 43. Qe4 {[%emt 0:00:03]} Ne6 {[%emt 0:00:06]} 44. Qa8+ {[%emt 0:00:03]} Kf7 {[%emt 0:00:07]} 45. Qxa5 {[%emt 0:00:05]} Qa1+ {[%emt 0:00:03]} 46. Bf1 {[%emt 0:00:01]} Nd4 {[%emt 0:00:05]} 47. Qd2 {[%emt 0:00:06]} Ke7 {[%emt 0:00:05]} 48. a4 {[%emt 0:00:05]} Qb1 {[%emt 0:00:02]} 49. Qe3+ {[%emt 0:00:01]} Kd7 {[%emt 0:00:00]} 50. g3 {[%emt 0:00:02]} Qxb3 {[%emt 0:00:03]} 51. Qxb3 {[%emt 0:00:01]} Nxb3 {[%emt 0:00:01]} 52. Bd3 {[%emt 0:00:03]} Kc7 {[%emt 0:00:01]} 53. Kg2 {[%emt 0:00:04]} Kb6 {[%emt 0:00:00]} 54. Bc2 {[%emt 0:00:01]} Nd2 {[%emt 0:00:03]} 55. f4 {[%emt 0:00:04]} Nxc4 {[%emt 0:00:01]} 56. Kf3 {[%emt 0:00:02]} d5 {[%emt 0:00:03]} 57. g4 {[%emt 0:00:02]} d4 {[%emt 0:00:01]} 58. Ke4 {[%emt 0:00:02]} Nd6+ {[%emt 0:00:02]} 59. Kd5 {[%emt 0:00:01]} Nb7 {[%emt 0:00:06]} 60. f5 {[%emt 0:00:06]} Nd8 {[%emt 0:00:03]} 61. h4 {[%emt 0:00:02]} Nf7 {[%emt 0:00:11]} 62. Bd3 {[%emt 0:00:02]} Nd8 {[%emt 0:00:05]} 63. g5 {[%emt 0:00:03]} hxg5 {[%emt 0:00:01]} 64. hxg5 {[%emt 0:00:00]} Nf7 {[%emt 0:00:01]} 65. f6 {[%emt 0:00:09]} gxf6 {[%emt 0:00:01]} 66. gxf6 {[%emt 0:00:02]} Nh6 {[%emt 0:00:02]} 67. Kc4 {[%emt 0:00:06]} Nf7 {[%emt 0:00:04]} 68. Bc2 {[%emt 0:00:05]} Ne5+ {[%emt 0:00:03]} 69. Kd5 {[%emt 0:00:01]} Nf7 {[%emt 0:00:01]} 70. Ke6 {[%emt 0:00:04]} Nh6 {[%emt 0:00:02]} 71. Bd1 {[%emt 0:00:06]} Ka5 {[%emt 0:00:07]} 72. Kd5 {[%emt 0:00:03]} Kb4 {[%emt 0:00:00]} 73. a5 {[%emt 0:00:02]} Kxa5 {[%emt 0:00:02]} 74. Kxc5 {[%emt 0:00:01]} d3 {[%emt 0:00:00]} 75. Kd4 {[%emt 0:00:02]} Kb6 {[%emt 0:00:02]} 76. Kxd3 {[%emt 0:00:03]} Kc6 {[%emt 0:00:00]} 77. Ke4 {[%emt 0:00:02]} Kd6 {[%emt 0:00:05]} 1/2-1/2

[Event "Polish University-ch Open 2024"]
[Site "Lublin"]
[Date "2024.02.24"]
[Round "7.16"]
[White "Fiedorek, Michal"]
[Black "Zaleski, Lukasz"]
[Result "1-0"]
[ECO "C02"]
[WhiteElo "2286"]
[BlackElo "2182"]
[Annotator "TA"]
[PlyCount "39"]
[EventDate "2024.02.22"]
[EventType "swiss"]
[EventCountry "POL"]
[SourceTitle "playchess.com"]
[Source "ChessBase"]
[SourceQuality "1"]
[TimeControl "600+3"]

{[%evp 14,39,23,6,4,22,37,30,54,40,25,26,31,28,109,95,190,267,270,207,228,104,118,67,317,220,1744,1693]} 1. e4 {[%emt 0:00:02]} e6 {[%emt 0:00:01]} 2. d4 {[%emt 0:00:02]} d5 {[%emt 0:00:02]} 3. e5 {[%emt 0:00:01]} c5 {[%emt 0:00:07]} 4. c3 {[%emt 0:00:01]} Qb6 {[%emt 0:00:03]} 5. Nf3 {[%emt 0:00:11]} Bd7 {[%emt 0:00:15]} 6. Bd3 {[%emt 0:00:01]} Bb5 {[%emt 0:00:18]} 7. dxc5 {[%emt 0:00:03]} Bxc5 {[%emt 0:00:12]} 8. b4 {[%emt 0:00:02]} Bxd3 $1 {[%emt 0:03:18]} (8... Bxf2+ $6 9. Kf1 $16) 9. Qxd3 {[%emt 0:00:17]} Be7 {[%emt 0:00:54]} 10. O-O {[%emt 0:00:07]} Nd7 {[%emt 0:00:37] Weiß hat minimalen Vorteil.} 11. Be3 {[%emt 0:00:26]} Qc7 {[%emt 0:00:02][%cal Oa8c8]} 12. Na3 {[%emt 0:00:06]} a6 {[%emt 0:01:18] Es drohte Nb5} 13. c4 $36 {[%emt 0:00:01][%mdl 2048] Weiss drückt.} Bxb4 {[%emt 0:01:44]} (13... d4 $11 {bleibt in der Remisbreite.} 14. Qxd4 (14. Bxd4 Bxb4 15. c5 Bxa3 $11) 14... Bxb4) 14. cxd5 $16 {[%emt 0:03:01] Droht Rac1 und aus.} exd5 {[%emt 0:00:32]} (14... Qc3 $16 15. Qxc3 Bxc3) 15. Rac1 {[%emt 0:01:24]} (15. Rfc1 $142 Nxe5 16. Nxe5 (16. Qxd5 Nc6 $11) 16... Qxe5 17. Bd4 (17. Nb5 Kf8 $16)) 15... Qa5 $18 {[%emt 0:00:01]} 16. Nc2 {[%emt 0:00:01] Zielt auf Rb1 ab.} Ne7 {[%emt 0:01:16] [#]} 17. e6 {[%emt 0:01:26]} fxe6 $16 {[%emt 0:00:03]} 18. Ng5 {[%emt 0:00:00] Weiß hat aktiveres Spiel.} (18. Ncd4 $16 e5 (18... Qxa2 $2 {ist das falsche Schlagen.} 19. Nxe6 h6 20. Qd4 $18) (18... Nc5 19. Rxc5 Qxc5 20. Nxe6 $16) 19. Ne6) 18... Ne5 $2 {[%emt 0:00:09]} (18... e5 $1 $14) 19. Qb3 {[%emt 0:00:02]} Qb6 {[%emt 0:00:03]} (19... Bd6) 20. Bxb6 {[%emt 0:00:08] Gewichteter Fehlerwert: Weiß=0.33/Schwarz=0.50.  Verlustzug:     	---       	Schwarz=1     Fehler:       	Weiß=3     	Schwarz=3     Ungenau:       	Weiß=1     	---        OK:         	Weiß=3     	Schwarz=2     Bester:       	Weiß=2     	Schwarz=2} 1-0

[Event "Polish University-ch Open 2024"]
[Site "Lublin"]
[Date "2024.02.24"]
[Round "7.17"]
[White "Bilczewski, Kacper"]
[Black "Karpus, Michal"]
[Result "1-0"]
[ECO "C12"]
[WhiteElo "2139"]
[BlackElo "2243"]
[Annotator "TA"]
[PlyCount "67"]
[EventDate "2024.02.22"]
[EventType "swiss"]
[EventCountry "POL"]
[SourceTitle "playchess.com"]
[Source "ChessBase"]
[SourceQuality "1"]
[TimeControl "600+3"]

{[%evp 22,67,7,-6,0,0,0,0,100,101,185,64,56,-60,14,0,0,0,0,-45,14,24,27,0,0,0,0,0,84,86,95,72,67,38,46,0,52,49,152,156,265,252,345,304,725,366,322,247]} 1. e4 {[%emt 0:00:03]} e6 {[%emt 0:00:01]} 2. d4 {[%emt 0:00:09]} d5 {[%emt 0:00:02]} 3. Nc3 {[%emt 0:00:08]} Nf6 {[%emt 0:00:02]} 4. Bg5 {[%emt 0:00:16]} Bb4 {[%emt 0:00:02]} 5. e5 {[%emt 0:00:50]} h6 {[%emt 0:00:01]} 6. Bd2 {[%emt 0:00:01]} Bxc3 {[%emt 0:00:13]} 7. bxc3 {[%emt 0:00:04]} Ne4 {[%emt 0:00:02]} 8. Qg4 {[%emt 0:01:09]} g6 {[%emt 0:01:02]} 9. Bd3 {[%emt 0:00:51]} Nxd2 {[%emt 0:00:25]} 10. Kxd2 {[%emt 0:00:02]} c5 {[%emt 0:00:02]} 11. Nf3 {[%emt 0:00:33]} Nc6 {[%emt 0:00:06]} 12. Rhb1 {[%emt 0:00:47]} Qa5 {[%emt 0:01:01]} (12... c4 {vereinfacht} 13. Be2 O-O 14. Qh4 Qxh4 15. Nxh4 b6) 13. Rb5 {[%emt 0:00:20]} Qa3 {[%emt 0:00:34]} 14. Rxc5 {[%emt 0:00:19][%cal Od3g6]} Qb2 {[%emt 0:00:20]} (14... Bd7 $1 $11) 15. Rc1 {[%emt 0:00:35]} Qxa2 {[%emt 0:00:13]} (15... Qb6 $16 {war angesagt.}) 16. Rb5 {[%emt 0:00:19]} (16. Qh4 $1 $18) 16... b6 $14 {[%emt 0:00:17]} 17. Rb3 {[%emt 0:00:35]} (17. Qh4 $14) 17... Bd7 {[%emt 0:00:27]} ({Besser ist} 17... Ba6 $15) 18. Rcb1 {[%emt 0:00:22]} Na5 $36 {[%emt 0:00:21][%mdl 2048] Schwarz hat gut koordiniertes Spiel.} 19. Rb4 {[%emt 0:00:29]} Rc8 {[%emt 0:00:13]} 20. Ng1 {[%emt 0:00:59] Droht Qd1 und aus.} Qa3 {[%emt 0:02:54]} (20... Nc4+ $1 $15 21. Bxc4 Rxc4) 21. Ne2 $11 {[%emt 0:00:06]} Nc6 {[%emt 0:00:01]} (21... h5 {wäre vielleicht verwirrender.} 22. Qf4 h4 23. h3 Rc7) 22. R1b3 {[%emt 0:00:31]} Qa5 {[%emt 0:00:02]} 23. Rb5 {[%emt 0:00:09]} Qa4 {[%emt 0:00:01] ...Nxe5 wäre nun fies.} 24. Qf4 {[%emt 0:00:14]} Ne7 {[%emt 0:00:58]} (24... Na5 $11) 25. R5b4 {[%emt 0:00:11]} Qc6 {[%emt 0:00:07]} 26. Qf6 {[%emt 0:00:34]} Rg8 {[%emt 0:00:10]} 27. g4 {[%emt 0:00:24] Weiß hat aktiveres Spiel.} Qc7 {[%emt 0:00:29]} 28. Rb1 {[%emt 0:00:12]} (28. Ra3 $14) 28... Rb8 {[%emt 0:00:13]} (28... Nc6 $11) 29. h4 {[%emt 0:00:08][%cal Bh2h4,Bh4h5][%mdl 32]} a5 {[%emt 0:00:11] [#]} (29... Nc6 $14) 30. R4b2 $1 $16 {[%emt 0:00:03]} a4 {[%emt 0:00:32] [#]} (30... Qd8 $16 {war nötig.} 31. h5 Nc8) 31. h5 $1 $18 {[%emt 0:00:01]} a3 {[%emt 0:00:26]} 32. Ra2 {[%emt 0:00:15] g5 ist eine echte Drohung.} Ra8 $2 {[%emt 0:00:06]} (32... Qd8 33. Rxa3 (33. hxg6 Nxg6 34. f3 Qxf6 $14) 33... Nc6 34. Qxd8+ (34. hxg6 Qxf6 35. exf6 fxg6 $18) 34... Kxd8 35. hxg6 fxg6) 33. hxg6 {[%emt 0:00:00]} Nxg6 {[%emt 0:00:08]} 34. Bxg6 {[%emt 0:00:00] Gewichteter Fehlerwert: Weiß=0.31/Schwarz=0.42.  Fehler:       	Weiß=3     	Schwarz=9     Ungenau:       	Weiß=4     	Schwarz=1     OK:         	Weiß=5     	Schwarz=8     Bester:       	Weiß=1     	---        Stark:        	Weiß=2     	---} 1-0

[Event "Polish University-ch Open 2024"]
[Site "Lublin"]
[Date "2024.02.24"]
[Round "7.18"]
[White "Lis, Mateusz"]
[Black "Koziorowicz, Michal"]
[Result "1-0"]
[ECO "C41"]
[WhiteElo "2019"]
[BlackElo "2324"]
[Annotator "ChessBase"]
[PlyCount "263"]
[EventDate "2024.02.22"]
[EventType "swiss"]
[EventCountry "POL"]
[SourceTitle "playchess.com"]
[Source "ChessBase"]
[SourceQuality "1"]
[TimeControl "600+3"]

1. e4 {[%emt 0:00:02]} e5 {[%emt 0:00:07]} 2. Nf3 {[%emt 0:00:03]} d6 {[%emt 0:00:01]} 3. d4 {[%emt 0:00:01]} Nd7 {[%emt 0:00:02]} 4. Nc3 {[%emt 0:00:05]} Ngf6 {[%emt 0:00:12]} 5. Bg5 {[%emt 0:00:20]} Be7 {[%emt 0:00:04]} 6. Bc4 {[%emt 0:00:13]} h6 {[%emt 0:00:07]} 7. Bxf6 {[%emt 0:00:41]} Bxf6 {[%emt 0:00:02]} 8. O-O {[%emt 0:00:07]} exd4 {[%emt 0:00:24]} 9. Nxd4 {[%emt 0:00:03]} Nb6 {[%emt 0:00:07]} 10. Be2 {[%emt 0:00:45]} O-O {[%emt 0:00:05]} 11. f4 {[%emt 0:02:15]} Re8 {[%emt 0:00:22]} 12. Kh1 {[%emt 0:00:44]} a6 {[%emt 0:00:18]} 13. Qd3 {[%emt 0:00:50]} Nd7 {[%emt 0:00:15]} 14. Bf3 {[%emt 0:00:28]} Nc5 {[%emt 0:00:28]} 15. Qd2 {[%emt 0:00:09]} c6 {[%emt 0:01:42]} 16. Rae1 {[%emt 0:00:29]} Qb6 {[%emt 0:00:21]} 17. Nb3 {[%emt 0:00:10]} Nxb3 {[%emt 0:00:30]} 18. axb3 {[%emt 0:00:02]} Qc7 {[%emt 0:00:06]} 19. Rd1 {[%emt 0:00:28]} Rd8 {[%emt 0:00:06]} 20. Qe3 {[%emt 0:00:28]} Be6 {[%emt 0:00:33]} 21. Rfe1 {[%emt 0:00:12]} a5 {[%emt 0:00:17]} 22. g4 {[%emt 0:00:42]} Re8 {[%emt 0:00:32]} 23. Qf2 {[%emt 0:00:19]} Qe7 {[%emt 0:00:09]} 24. Qg2 {[%emt 0:00:08]} Rad8 {[%emt 0:00:19]} 25. Rg1 {[%emt 0:00:02]} Bc8 {[%emt 0:00:30]} 26. Rde1 {[%emt 0:00:13]} Bd4 {[%emt 0:00:11]} 27. Rgf1 {[%emt 0:00:03]} Qh4 {[%emt 0:00:12]} 28. Qg3 {[%emt 0:00:08]} Qxg3 {[%emt 0:00:23]} 29. hxg3 {[%emt 0:00:01]} b5 {[%emt 0:00:09]} 30. Rd1 {[%emt 0:00:04]} Bc5 {[%emt 0:00:01]} 31. Ra1 {[%emt 0:00:02]} Bb6 {[%emt 0:00:01]} 32. Kg2 {[%emt 0:00:02]} Bb7 {[%emt 0:00:11]} 33. Rfe1 {[%emt 0:00:04]} Ra8 {[%emt 0:00:14]} 34. Red1 {[%emt 0:00:07]} Red8 {[%emt 0:00:05]} 35. Rd2 {[%emt 0:00:23]} Kf8 {[%emt 0:00:04]} 36. Rad1 {[%emt 0:00:06]} Ke7 {[%emt 0:00:03]} 37. Re2 {[%emt 0:00:04]} Bc5 {[%emt 0:00:15]} 38. e5 {[%emt 0:00:14]} d5 {[%emt 0:00:00]} 39. f5 {[%emt 0:00:01]} Kf8 {[%emt 0:00:30]} 40. e6 {[%emt 0:00:02]} f6 {[%emt 0:00:08]} 41. Red2 {[%emt 0:00:06]} Ke7 {[%emt 0:00:08]} 42. Ne2 {[%emt 0:00:01]} a4 {[%emt 0:00:28]} 43. bxa4 {[%emt 0:00:04]} Rxa4 {[%emt 0:00:07]} 44. Nf4 {[%emt 0:00:01]} Rda8 {[%emt 0:00:51]} 45. b3 {[%emt 0:00:03]} Ra1 {[%emt 0:00:01]} 46. Nh5 {[%emt 0:00:22]} Be3 {[%emt 0:00:13]} 47. Rxa1 {[%emt 0:00:07]} Rxa1 {[%emt 0:00:01]} 48. Re2 {[%emt 0:00:04]} d4 {[%emt 0:00:16]} 49. Nxg7 {[%emt 0:00:08]} Rg1+ {[%emt 0:00:04]} 50. Kh2 {[%emt 0:00:01]} Rf1 {[%emt 0:00:01]} 51. Bg2 {[%emt 0:00:04]} Rc1 {[%emt 0:00:03]} 52. Nh5 {[%emt 0:00:04]} Kd6 {[%emt 0:00:05]} 53. Nxf6 {[%emt 0:00:05]} Bc8 {[%emt 0:00:06]} 54. Ne4+ {[%emt 0:00:01]} Ke7 {[%emt 0:00:02]} 55. Nc5 {[%emt 0:00:04]} Kd6 {[%emt 0:00:01]} 56. Nd3 {[%emt 0:00:01]} Rd1 {[%emt 0:00:04]} 57. Nf4 {[%emt 0:00:08]} c5 {[%emt 0:00:04]} 58. Ng6 {[%emt 0:00:03]} c4 {[%emt 0:00:07]} 59. e7 {[%emt 0:00:02]} Bd7 {[%emt 0:00:02]} 60. f6 {[%emt 0:00:02]} Be8 {[%emt 0:00:05]} 61. Nf4 {[%emt 0:00:06]} Ke5 {[%emt 0:00:02]} 62. bxc4 {[%emt 0:00:01]} bxc4 {[%emt 0:00:01]} 63. Nd5 {[%emt 0:00:01]} Rd2 {[%emt 0:00:06]} 64. Rxd2 {[%emt 0:00:07]} Bxd2 {[%emt 0:00:01]} 65. Nc7 {[%emt 0:00:00]} Kxf6 {[%emt 0:00:02]} 66. Nxe8+ {[%emt 0:00:01]} Kxe7 {[%emt 0:00:01]} 67. Ng7 {[%emt 0:00:01]} Kf6 {[%emt 0:00:07]} 68. Nf5 {[%emt 0:00:01]} Ke5 {[%emt 0:00:01]} 69. Kg1 {[%emt 0:00:02]} d3 {[%emt 0:00:02]} 70. cxd3 {[%emt 0:00:01]} c3 {[%emt 0:00:01]} 71. d4+ {[%emt 0:00:08]} Kf6 {[%emt 0:00:01]} 72. Be4 {[%emt 0:00:01]} Kg5 {[%emt 0:00:02]} 73. Kg2 {[%emt 0:00:01]} Kxg4 {[%emt 0:00:02]} 74. Nh4 {[%emt 0:00:05]} Be1 {[%emt 0:00:06]} 75. Nf5 {[%emt 0:00:09]} h5 {[%emt 0:00:02]} 76. Ne3+ {[%emt 0:00:02]} Kg5 {[%emt 0:00:19]} 77. d5 {[%emt 0:00:03]} Kf6 {[%emt 0:00:00]} 78. Kf3 {[%emt 0:00:02]} h4 {[%emt 0:00:00]} 79. gxh4 {[%emt 0:00:04]} Bxh4 {[%emt 0:00:00]} 80. Ke2 {[%emt 0:00:01]} Ke5 {[%emt 0:00:00]} 81. Kd3 {[%emt 0:00:01]} Be1 {[%emt 0:00:00]} 82. Nc4+ {[%emt 0:00:02]} Kf6 {[%emt 0:00:00]} 83. d6 {[%emt 0:00:02]} Ke6 {[%emt 0:00:01]} 84. Bc6 {[%emt 0:00:02]} Kf6 {[%emt 0:00:14]} 85. d7 {[%emt 0:00:02]} Ke7 {[%emt 0:00:01]} 86. Nd6 {[%emt 0:00:07]} Bh4 {[%emt 0:00:06]} 87. Nb7 {[%emt 0:00:02]} Ke6 {[%emt 0:00:02]} 88. Kxc3 {[%emt 0:00:06]} Ke5 {[%emt 0:00:05]} 89. d8=Q {[%emt 0:00:03]} Bxd8 {[%emt 0:00:02]} 90. Nxd8 {[%emt 0:00:00]} Kd6 {[%emt 0:00:02]} 91. Be4 {[%emt 0:00:03]} Ke5 {[%emt 0:00:01]} 92. Kd3 {[%emt 0:00:00]} Kf4 {[%emt 0:00:02]} 93. Ne6+ {[%emt 0:00:02]} Ke5 {[%emt 0:00:01]} 94. Nc5 {[%emt 0:00:01]} Kf4 {[%emt 0:00:03]} 95. Kd4 {[%emt 0:00:01]} Kg5 {[%emt 0:00:02]} 96. Ke5 {[%emt 0:00:00]} Kh6 {[%emt 0:00:02]} 97. Kf6 {[%emt 0:00:04]} Kh5 {[%emt 0:00:02]} 98. Ne6 {[%emt 0:00:02]} Kg4 {[%emt 0:00:02]} 99. Ke5 {[%emt 0:00:01]} Kh5 {[%emt 0:00:02]} 100. Bf5 {[%emt 0:00:08]} Kh6 {[%emt 0:00:03]} 101. Bg4 {[%emt 0:00:05]} Kg6 {[%emt 0:00:02]} 102. Bf3 {[%emt 0:00:11]} Kf7 {[%emt 0:00:04]} 103. Ng5+ {[%emt 0:00:02]} Kg6 {[%emt 0:00:01]} 104. Ne4 {[%emt 0:00:01]} Kf7 {[%emt 0:00:03]} 105. Nf6 {[%emt 0:00:01]} Kg6 {[%emt 0:00:03]} 106. Bg4 {[%emt 0:00:04]} Kf7 {[%emt 0:00:03]} 107. Bf5 {[%emt 0:00:02]} Kg7 {[%emt 0:00:01]} 108. Ke6 {[%emt 0:00:01]} Kh8 {[%emt 0:00:02]} 109. Nh5 {[%emt 0:00:04]} Kg8 {[%emt 0:00:01]} 110. Kf6 {[%emt 0:00:01]} Kh8 {[%emt 0:00:01]} 111. Ng3 {[%emt 0:00:03]} Kg8 {[%emt 0:00:01]} 112. Ne4 {[%emt 0:00:01]} Kh8 {[%emt 0:00:01]} 113. Nd6 {[%emt 0:00:01]} Kg8 {[%emt 0:00:04]} 114. Nf7 {[%emt 0:00:00]} Kf8 {[%emt 0:00:01]} 115. Bh7 {[%emt 0:00:01]} Ke8 {[%emt 0:00:00]} 116. Ke6 {[%emt 0:00:03]} Kf8 {[%emt 0:00:01]} 117. Kf6 {[%emt 0:00:00]} Ke8 {[%emt 0:00:02]} 118. Ne5 {[%emt 0:00:01]} Kd8 {[%emt 0:00:07]} 119. Ke6 {[%emt 0:00:01]} Kc7 {[%emt 0:00:01]} 120. Nd7 {[%emt 0:00:02]} Kc6 {[%emt 0:00:05]} 121. Bd3 {[%emt 0:00:01]} Kc7 {[%emt 0:00:01]} 122. Be4 {[%emt 0:00:01]} Kd8 {[%emt 0:00:02]} 123. Kd6 {[%emt 0:00:03]} Ke8 {[%emt 0:00:01]} 124. Bg6+ {[%emt 0:00:01]} Kd8 {[%emt 0:00:01]} 125. Bf7 {[%emt 0:00:01]} Kc8 {[%emt 0:00:01]} 126. Nc5 {[%emt 0:00:00]} Kb8 {[%emt 0:00:06]} 127. Kc6 {[%emt 0:00:02]} Ka7 {[%emt 0:00:02]} 128. Be6 {[%emt 0:00:11]} Kb8 {[%emt 0:00:03]} 129. Kb6 {[%emt 0:00:01]} Ka8 {[%emt 0:00:01]} 130. Bd7 {[%emt 0:00:02]} Kb8 {[%emt 0:00:00]} 131. Na6+ {[%emt 0:00:00]} Ka8 {[%emt 0:00:01]} 132. Bc6# {[%emt 0:00:01]} 1-0